[Event "44th Chess Olympiad Open 2022"]
[Site "Chennai"]
[Date "2022.08.05"]
[Round "7.67"]
[White "Rurik Capella"]
[Black "Stetsenko, Ilya"]
[Result "0-1"]
[WhiteElo "1952"]
[BlackElo "1683"]
[Annotator "NA RC"]
[PlyCount "108"]
[EventDate "2022.??.??"]
[TimeControl "60"]

1. e4 {[%emt 0:00:03]} c6 {[%emt 0:00:09]} 2. d4 {[%emt 0:00:04]} d5 {[%emt 0:
00:00]} 3. e5 {[%emt 0:00:08]} Bf5 {[%emt 0:00:02]} 4. Nf3 {[%emt 0:00:21]} e6
{[%emt 0:00:03]} 5. Be2 {[%emt 0:00:20]} Ne7 {[%emt 0:00:04]} 6. O-O {[%emt 0:
00:00]} h6 {[%emt 0:00:08]} 7. Nbd2 {[%emt 0:01:39]} Nd7 {[%emt 0:00:27]} 8. c4
{[%emt 0:00:24]} Bh7 {[%emt 0:03:32]} 9. Re1 {[%emt 0:04:26]} Nf5 {[%emt 0:00:
00]} 10. cxd5 {[%emt 0:10:54]} cxd5 {[%emt 0:00:55]} 11. Bb5 {[%emt 0:01:28]}
Bb4 {[%emt 0:13:30]} 12. Qa4 {[%emt 0:02:48]} Bxd2 {[%emt 0:01:39]} 13. Bxd2 {
[%emt 0:00:26]} a6 {[%emt 0:03:58]} 14. Bxd7+ {[%emt 0:07:47]} Qxd7 {[%emt 0:
00:00]} 15. Qa3 {[%emt 0:00:38]} a5 {[%emt 0:06:15]} 16. Rac1 {[%emt 0:05:09]}
Ne7 {[%emt 0:01:04]} 17. Rc5 {[%emt 0:01:56]} b6 {[%emt 0:01:08]} 18. Rc3 {
[%emt 0:04:21]} O-O {[%emt 0:00:11]} 19. Qd6 {[%emt 0:06:58]} Qxd6 {[%emt 0:00:
00]} 20. exd6 {[%emt 0:00:01]} Nf5 {[%emt 0:00:17]} 21. Rc6 {[%emt 0:05:14]}
Rad8 {[%emt 0:12:38]} 22. Bf4 {[%emt 0:11:09]} g5 {[%emt 0:00:07]} 23. Bg3 {
[%emt 0:00:14]} g4 {[%emt 0:00:56]} 24. Ne5 {[%emt 0:01:17]} Nxd4 {[%emt 0:00:
00]} 25. Rxb6 {[%emt 0:00:43]} h5 {[%emt 0:01:08]} 26. Nc6 {[%emt 0:09:50]}
Nxc6 {[%emt 0:00:07]} 27. Rxc6 {[%emt 0:00:02]} Rd7 {[%emt 0:01:15]} 28. Bh4 {
[%emt 0:10:52]} Kg7 {[%emt 0:01:53]} 29. Be7 {[%emt 0:01:51]} Ra8 {[%emt 0:00:
00]} 30. Rec1 {[%emt 0:01:18]} Bf5 {[%emt 0:07:01]} 31. Kf1 {[%emt 0:05:06]} a4
{[%emt 0:04:18]} 32. Rc7 {[%emt 0:02:43]} Ra7 {[%emt 0:00:40]} 33. Ke2 {
[%emt 0:01:32]} e5 {[%emt 0:01:25]} 34. f3 {[%emt 0:00:34]} Be6 {[%emt 0:01:17]
} 35. h3 {[%emt 0:02:04]} Raxc7 {[%emt 0:03:04]} 36. dxc7 {[%emt 0:01:17]} Rxe7
{[%emt 0:00:14]} 37. c8=Q {[%emt 0:00:03]} Bxc8 {[%emt 0:00:05]} 38. Rxc8 {
[%emt 0:00:00]} gxh3 {[%emt 0:00:54]} 39. gxh3 {[%emt 0:00:08]} Rb7 {[%emt 0:
00:00]} 40. Rc2 {[%emt 0:00:50]} Kf6 {[%emt 0:03:06]} 41. Kd3 {[%emt 0:30:39]}
Rb5 {[%emt 0:31:50]} 42. Rg2 {[%emt 0:02:35]} Rb4 {[%emt 0:01:55]} 43. Kc3 {
[%emt 0:00:31]} Rf4 {[%emt 0:00:44]} 44. b4 {[%emt 0:00:00]} Rc4+ {[%emt 0:00:
00]} 45. Kd3 {[%emt 0:00:00]} Rxb4 {[%emt 0:00:00]} 46. Rc2 {[%emt 0:00:00]}
Rd4+ {[%emt 0:00:00]} 47. Ke3 {[%emt 0:00:00]} Rc4 {[%emt 0:00:00]} 48. Rd2 {
[%emt 0:00:00]} Rc3+ {[%emt 0:00:00]} 49. Kf2 {[%emt 0:00:00]} d4 {[%emt 0:00:
00]} 50. h4 {[%emt 0:00:00]} Kf5 {[%emt 0:00:00]} 51. Kg3 {[%emt 0:00:00]} a3 {
[%emt 0:00:00]} 52. Re2 {[%emt 0:00:00]} f6 {[%emt 0:00:00]} 53. Kf2 {[%emt 0:
00:00]} d3 {[%emt 0:00:00]} 54. Re1 {[%emt 0:00:00]} Rc2+ {[%emt 0:00:00]} 0-1

[Event "44th Chess Olympiad Open 2022"]
[Site "Chennai"]
[Date "2022.08.05"]
[Round "7.67"]
[White "Croes, Octavio"]
[Black "Ursus van Bemmelen"]
[Result "0-1"]
[WhiteElo "1794"]
[BlackElo "2145"]
[Annotator "NA RC"]
[PlyCount "52"]
[EventDate "2022.??.??"]
[TimeControl "60"]

1. d4 {[%emt 0:00:01]} d5 {[%emt 0:00:10]} 2. c4 {[%emt 0:00:05]} e6 {[%emt 0:
00:00]} 3. Nf3 {[%emt 0:00:07]} Nf6 {[%emt 0:00:09]} 4. g3 {[%emt 0:00:07]}
Bb4+ {[%emt 0:00:40]} 5. Bd2 {[%emt 0:00:11]} Bd6 {[%emt 0:00:23]} 6. Bg2 {
[%emt 0:00:33]} O-O {[%emt 0:00:20]} 7. O-O {[%emt 0:02:00]} c6 {[%emt 0:00:08]
} 8. Bg5 {[%emt 0:05:37]} Nbd7 {[%emt 0:06:08]} 9. Qc2 {[%emt 0:00:30]} h6 {
[%emt 0:02:20]} 10. Bxf6 {[%emt 0:00:24]} Qxf6 {[%emt 0:02:28]} 11. cxd5 {
[%emt 0:07:06]} exd5 {[%emt 0:02:18]} 12. Nc3 {[%emt 0:00:52]} Qd8 {[%emt 0:00:
00]} 13. e3 {[%emt 0:15:20]} Re8 {[%emt 0:03:47]} 14. a3 {[%emt 0:00:40]} a5 {
[%emt 0:14:15]} 15. Rab1 {[%emt 0:01:01]} Nb6 {[%emt 0:05:59]} 16. Nd2 {
[%emt 0:11:18]} g6 {[%emt 0:06:57]} 17. e4 {[%emt 0:06:43]} dxe4 {[%emt 0:00:
00]} 18. Ndxe4 {[%emt 0:00:21]} Bf8 {[%emt 0:02:20]} 19. Rbd1 {[%emt 0:02:13]}
Bf5 {[%emt 0:04:27]} 20. Qd3 {[%emt 0:10:39]} Be6 {[%emt 0:06:11]} 21. Rfe1 {
[%emt 0:02:10]} Bb3 {[%emt 0:00:30]} 22. Rd2 {[%emt 0:04:06]} f5 {[%emt 0:00:
00]} 23. Nf6+ {[%emt 0:19:03]} Qxf6 {[%emt 0:00:28]} 24. Ne4 {[%emt 0:00:04]}
Qf7 {[%emt 0:02:19]} 25. Nf6+ {[%emt 0:00:18]} Qxf6 {[%emt 0:00:10]} 26. Qxb3+
{[%emt 0:00:04]} Qf7 {[%emt 0:00:36]} 0-1

[Event "44th Chess Olympiad Open 2022"]
[Site "Chennai"]
[Date "2022.08.05"]
[Round "7.68"]
[White "Chimthere, Alfred Charles"]
[Black "Kannappan, Thanneermalai"]
[Result "0-1"]
[WhiteElo "2035"]
[BlackElo "1699"]
[Annotator "NA RC"]
[PlyCount "118"]
[EventDate "2022.??.??"]
[TimeControl "60"]

1. d4 {[%emt 0:00:16]} Nf6 {[%emt 0:00:22]} 2. c4 {[%emt 0:00:25]} g6 {[%emt 0:
00:00]} 3. Nc3 {[%emt 0:00:20]} d5 {[%emt 0:00:25]} 4. cxd5 {[%emt 0:01:07]}
Nxd5 {[%emt 0:00:18]} 5. e4 {[%emt 0:00:28]} Nxc3 {[%emt 0:00:27]} 6. bxc3 {
[%emt 0:00:02]} Bg7 {[%emt 0:00:54]} 7. Bc4 {[%emt 0:00:24]} c5 {[%emt 0:00:34]
} 8. Ne2 {[%emt 0:00:47]} Nc6 {[%emt 0:00:26]} 9. Be3 {[%emt 0:00:39]} Bg4 {
[%emt 0:00:23]} 10. f3 {[%emt 0:00:15]} Bd7 {[%emt 0:00:11]} 11. O-O {[%emt 0:
00:00]} O-O {[%emt 0:00:17]} 12. Qd2 {[%emt 0:01:00]} Qa5 {[%emt 0:01:10]} 13.
Rfd1 {[%emt 0:07:45]} b5 {[%emt 0:15:04]} 14. Bd5 {[%emt 0:07:35]} Rfd8 {
[%emt 0:05:19]} 15. dxc5 {[%emt 0:04:11]} Rac8 {[%emt 0:10:31]} 16. Rac1 {
[%emt 0:01:20]} Ne5 {[%emt 0:04:23]} 17. Nd4 {[%emt 0:14:55]} Nc4 {[%emt 0:00:
00]} 18. Bxc4 {[%emt 0:11:13]} bxc4 {[%emt 0:00:07]} 19. Qe2 {[%emt 0:00:20]}
e5 {[%emt 0:05:30]} 20. Qxc4 {[%emt 0:05:55]} exd4 {[%emt 0:07:36]} 21. cxd4 {
[%emt 0:00:10]} Bb5 {[%emt 0:06:01]} 22. Qc2 {[%emt 0:01:51]} Ba4 {[%emt 0:00:
00]} 23. Qd2 {[%emt 0:00:20]} Qb5 {[%emt 0:08:30]} 24. Qd3 {[%emt 0:02:41]} Qb2
{[%emt 0:04:28]} 25. Qd2 {[%emt 0:00:27]} Rb8 {[%emt 0:07:03]} 26. Qxb2 {
[%emt 0:04:33]} Rxb2 {[%emt 0:00:05]} 27. Rd3 {[%emt 0:00:08]} Bb5 {[%emt 0:00:
00]} 28. Rdd1 {[%emt 0:06:20]} Be2 {[%emt 0:01:06]} 29. Rb1 {[%emt 0:13:08]}
Bxd4 {[%emt 0:05:02]} 30. Bxd4 {[%emt 0:00:34]} Rxb1 {[%emt 0:01:12]} 31. Rxb1
{[%emt 0:00:32]} Rxd4 {[%emt 0:00:06]} 32. Rb2 {[%emt 0:01:07]} Bd1 {[%emt 0:
00:00]} 33. Rb8+ {[%emt 0:03:23]} Kg7 {[%emt 0:00:05]} 34. Rb7 {[%emt 0:00:53]}
a6 {[%emt 0:02:17]} 35. Kf2 {[%emt 0:04:40]} Ba4 {[%emt 0:00:45]} 36. e5 {
[%emt 0:04:07]} Kf8 {[%emt 0:00:35]} 37. Rb6 {[%emt 0:01:27]} Bb5 {[%emt 0:00:
00]} 38. Ke3 {[%emt 0:00:58]} Rc4 {[%emt 0:00:22]} 39. h4 {[%emt 0:00:36]} Rxc5
{[%emt 0:00:27]} 40. a4 {[%emt 0:00:36]} Bf1 {[%emt 0:00:32]} 41. Kf2 {[%emt 0:
00:00]} Bc4 {[%emt 0:30:20]} 42. Ke3 {[%emt 0:00:59]} Ra5 {[%emt 0:01:10]} 43.
h5 {[%emt 0:01:58]} Kg7 {[%emt 0:01:28]} 44. hxg6 {[%emt 0:00:00]} hxg6 {
[%emt 0:00:00]} 45. Rb4 {[%emt 0:00:00]} Be6 {[%emt 0:00:00]} 46. f4 {[%emt 0:
00:00]} Bd7 {[%emt 0:00:00]} 47. Rb7 {[%emt 0:00:00]} Be6 {[%emt 0:00:00]} 48.
Rb4 {[%emt 0:00:00]} Kf8 {[%emt 0:00:00]} 49. Kf3 {[%emt 0:00:00]} Bd7 {
[%emt 0:00:00]} 50. Rd4 {[%emt 0:00:00]} Ke7 {[%emt 0:00:00]} 51. g4 {[%emt 0:
00:00]} Rxa4 {[%emt 0:00:00]} 52. Rd3 {[%emt 0:00:00]} a5 {[%emt 0:00:00]} 53.
Kg3 {[%emt 0:00:00]} Ra1 {[%emt 0:00:00]} 54. Kh4 {[%emt 0:00:00]} Rg1 {
[%emt 0:00:00]} 55. f5 {[%emt 0:00:00]} gxf5 {[%emt 0:00:00]} 56. gxf5 {
[%emt 0:00:00]} Bxf5 {[%emt 0:00:00]} 57. Rd5 {[%emt 0:00:00]} a4 {[%emt 0:00:
00]} 58. Ra5 {[%emt 0:00:00]} Bd7 {[%emt 0:00:00]} 59. Ra6 {[%emt 0:00:00]} Ra1
{[%emt 0:00:00]} 0-1

[Event "44th Chess Olympiad Open 2022"]
[Site "Chennai"]
[Date "2022.08.05"]
[Round "7.68"]
[White "Lau, Lut Yin Luke"]
[Black "Mwale, Joseph"]
[Result "1-0"]
[WhiteElo "2027"]
[BlackElo "2131"]
[Annotator "NA RC"]
[PlyCount "133"]
[EventDate "2022.??.??"]
[TimeControl "60"]

1. e4 {[%emt 0:00:07]} e5 {[%emt 0:00:05]} 2. Nf3 {[%emt 0:00:06]} Nc6 {
[%emt 0:00:06]} 3. Bc4 {[%emt 0:00:48]} Nf6 {[%emt 0:00:11]} 4. d3 {[%emt 0:00:
00]} Bc5 {[%emt 0:00:29]} 5. c3 {[%emt 0:00:21]} d6 {[%emt 0:00:39]} 6. O-O {
[%emt 0:05:15]} h6 {[%emt 0:01:06]} 7. a4 {[%emt 0:01:51]} a5 {[%emt 0:00:20]}
8. d4 {[%emt 0:16:13]} Bb6 {[%emt 0:00:06]} 9. dxe5 {[%emt 0:00:40]} Nxe5 {
[%emt 0:01:05]} 10. Nxe5 {[%emt 0:00:17]} dxe5 {[%emt 0:00:05]} 11. Qxd8+ {
[%emt 0:01:40]} Kxd8 {[%emt 0:00:03]} 12. Nd2 {[%emt 0:02:54]} Ke7 {[%emt 0:00:
00]} 13. Nf3 {[%emt 0:05:54]} Nxe4 {[%emt 0:03:53]} 14. Nxe5 {[%emt 0:02:27]}
Be6 {[%emt 0:03:49]} 15. Bxe6 {[%emt 0:01:35]} Kxe6 {[%emt 0:00:05]} 16. Nc4 {
[%emt 0:00:14]} Bc5 {[%emt 0:01:16]} 17. Bf4 {[%emt 0:02:04]} c6 {[%emt 0:00:
00]} 18. Rae1 {[%emt 0:03:02]} Kf5 {[%emt 0:00:34]} 19. Be3 {[%emt 0:04:44]}
Kf6 {[%emt 0:34:23]} 20. Bd4+ {[%emt 0:05:46]} Bxd4 {[%emt 0:01:23]} 21. Rxe4 {
[%emt 0:00:06]} Bc5 {[%emt 0:10:24]} 22. Rf4+ {[%emt 0:06:55]} Kg6 {[%emt 0:00:
00]} 23. Ne5+ {[%emt 0:00:26]} Kh7 {[%emt 0:00:09]} 24. Rxf7 {[%emt 0:00:42]}
Rhe8 {[%emt 0:00:38]} 25. Nd7 {[%emt 0:03:26]} Kg6 {[%emt 0:22:29]} 26. Rf3 {
[%emt 0:00:45]} Ba7 {[%emt 0:00:11]} 27. Rd1 {[%emt 0:00:46]} Re2 {[%emt 0:00:
00]} 28. b3 {[%emt 0:01:57]} Rae8 {[%emt 0:00:33]} 29. Rd6+ {[%emt 0:02:05]}
Kh7 {[%emt 0:00:35]} 30. g3 {[%emt 0:00:28]} Rc2 {[%emt 0:02:59]} 31. Nf8+ {
[%emt 0:04:03]} Kg8 {[%emt 0:00:02]} 32. Ne6 {[%emt 0:00:16]} Re2 {[%emt 0:00:
00]} 33. Nf4 {[%emt 0:01:49]} R2e7 {[%emt 0:00:24]} 34. h4 {[%emt 0:13:08]} Bc5
{[%emt 0:00:13]} 35. Rdd3 {[%emt 0:00:30]} Kh7 {[%emt 0:00:56]} 36. h5 {
[%emt 0:01:16]} Rf7 {[%emt 0:00:31]} 37. Kg2 {[%emt 0:00:42]} b5 {[%emt 0:00:
00]} 38. axb5 {[%emt 0:02:27]} cxb5 {[%emt 0:00:01]} 39. Rd5 {[%emt 0:00:19]}
Rc7 {[%emt 0:00:24]} 40. Nd3 {[%emt 0:04:13]} Bf8 {[%emt 0:01:07]} 41. Rxb5 {
[%emt 0:32:34]} Rxc3 {[%emt 0:30:14]} 42. Ne5 {[%emt 0:01:46]} Rc5 {[%emt 0:00:
00]} 43. Rxc5 {[%emt 0:00:00]} Bxc5 {[%emt 0:00:00]} 44. Ng6 {[%emt 0:00:00]}
Ra8 {[%emt 0:00:00]} 45. Rf5 {[%emt 0:00:00]} Bb4 {[%emt 0:00:00]} 46. Rb5 {
[%emt 0:00:00]} Rc8 {[%emt 0:00:00]} 47. f4 {[%emt 0:00:00]} Kg8 {[%emt 0:00:
00]} 48. Ne5 {[%emt 0:07:57]} Kf8 {[%emt 0:00:00]} 49. Nc4 {[%emt 0:00:00]} Ra8
{[%emt 0:00:00]} 50. Kf3 {[%emt 0:03:27]} Bc3 {[%emt 0:00:00]} 51. Nb6 {
[%emt 0:00:00]} Ra7 {[%emt 0:00:54]} 52. Nd5 {[%emt 0:00:00]} Be1 {[%emt 0:00:
00]} 53. Rb8+ {[%emt 0:00:00]} Kf7 {[%emt 0:00:05]} 54. Nb6 {[%emt 0:00:00]}
Rc7 {[%emt 0:00:31]} 55. Nc4 {[%emt 0:00:00]} Bc3 {[%emt 0:04:57]} 56. Ra8 {
[%emt 0:00:00]} Rc5 {[%emt 0:00:33]} 57. g4 {[%emt 0:00:00]} Ke7 {[%emt 0:00:
00]} 58. Ke4 {[%emt 0:00:00]} Rb5 {[%emt 0:00:33]} 59. Ra7+ {[%emt 0:00:00]}
Kf8 {[%emt 0:00:02]} 60. Kd3 {[%emt 0:00:00]} Be1 {[%emt 0:00:28]} 61. Kc2 {
[%emt 0:00:00]} Rd5 {[%emt 0:00:12]} 62. Rc7 {[%emt 0:00:00]} Rd4 {[%emt 0:00:
00]} 63. Ne5 {[%emt 0:00:05]} Bg3 {[%emt 0:02:12]} 64. Rc8+ {[%emt 0:00:05]}
Ke7 {[%emt 0:00:00]} 65. Nc6+ {[%emt 0:00:00]} Kd7 {[%emt 0:00:00]} 66. Rd8+ {
[%emt 0:00:00]} Kxc6 {[%emt 0:00:11]} 67. Rxd4 {[%emt 0:00:00]} 1-0

[Event "44th Chess Olympiad Open 2022"]
[Site "Chennai"]
[Date "2022.08.05"]
[Round "7.68"]
[White "Nyambalo, Joseph Xavier"]
[Black "Nissinen, Niilo Man"]
[Result "0-1"]
[WhiteElo "1981"]
[BlackElo "1693"]
[Annotator "NA RC"]
[PlyCount "124"]
[EventDate "2022.??.??"]
[TimeControl "60"]

1. c4 {[%emt 0:00:02]} Nf6 {[%emt 0:00:06]} 2. Nc3 {[%emt 0:00:07]} d5 {
[%emt 0:00:05]} 3. d4 {[%emt 0:00:16]} g6 {[%emt 0:00:31]} 4. g3 {[%emt 0:00:
00]} Bg7 {[%emt 0:06:20]} 5. Bg2 {[%emt 0:01:47]} dxc4 {[%emt 0:01:23]} 6. Qa4+
{[%emt 0:00:26]} Nbd7 {[%emt 0:00:52]} 7. Nf3 {[%emt 0:02:53]} O-O {[%emt 0:00:
00]} 8. Qxc4 {[%emt 0:00:12]} Nb6 {[%emt 0:20:49]} 9. Qd3 {[%emt 0:03:58]} Nbd5
{[%emt 0:02:26]} 10. O-O {[%emt 0:01:33]} Nxc3 {[%emt 0:02:59]} 11. bxc3 {
[%emt 0:00:18]} Bf5 {[%emt 0:01:33]} 12. Qb5 {[%emt 0:00:43]} Be4 {[%emt 0:00:
00]} 13. Ba3 {[%emt 0:00:43]} Re8 {[%emt 0:07:09]} 14. Qb3 {[%emt 0:02:17]} e6
{[%emt 0:04:17]} 15. Rfd1 {[%emt 0:01:22]} b6 {[%emt 0:06:35]} 16. c4 {[%emt 0:
00:00]} c6 {[%emt 0:02:39]} 17. Rac1 {[%emt 0:03:55]} Qc8 {[%emt 0:03:18]} 18.
Bh3 {[%emt 0:00:00]} Bf5 {[%emt 0:12:28]} 19. Bg2 {[%emt 0:05:08]} Be4 {
[%emt 0:00:09]} 20. Bh3 {[%emt 0:00:18]} Bf5 {[%emt 0:00:25]} 21. Bxf5 {
[%emt 0:00:12]} gxf5 {[%emt 0:01:29]} 22. c5 {[%emt 0:00:46]} b5 {[%emt 0:00:
00]} 23. Bb2 {[%emt 0:00:45]} Nd5 {[%emt 0:01:22]} 24. Qd3 {[%emt 0:01:04]} Qd8
{[%emt 0:05:33]} 25. a3 {[%emt 0:01:25]} Qf6 {[%emt 0:02:08]} 26. Ne5 {[%emt 0:
00:00]} Rec8 {[%emt 0:00:13]} 27. e4 {[%emt 0:00:38]} fxe4 {[%emt 0:00:06]} 28.
Qxe4 {[%emt 0:00:06]} Qf5 {[%emt 0:04:56]} 29. Qxf5 {[%emt 0:02:33]} exf5 {
[%emt 0:00:06]} 30. Nd3 {[%emt 0:00:57]} a5 {[%emt 0:00:23]} 31. Kg2 {[%emt 0:
00:00]} Re8 {[%emt 0:03:02]} 32. Re1 {[%emt 0:00:00]} Re4 {[%emt 0:04:29]} 33.
f3 {[%emt 0:00:24]} Re3 {[%emt 0:00:05]} 34. Rcd1 {[%emt 0:05:10]} f4 {[%emt 0:
00:00]} 35. Nxf4 {[%emt 0:02:32]} Rb3 {[%emt 0:00:13]} 36. Bc1 {[%emt 0:05:26]}
Nxf4+ {[%emt 0:01:04]} 37. gxf4 {[%emt 0:00:15]} Rd8 {[%emt 0:01:59]} 38. f5 {
[%emt 0:12:40]} Bf6 {[%emt 0:00:35]} 39. Bh6 {[%emt 0:04:58]} Rxa3 {[%emt 0:00:
00]} 40. d5 {[%emt 0:00:34]} Ra2+ {[%emt 0:00:33]} 41. Kh3 {[%emt 0:33:35]} Ra4
{[%emt 0:10:25]} 42. f4 {[%emt 0:00:00]} cxd5 {[%emt 0:05:17]} 43. Rxd5 {
[%emt 0:00:00]} Ra3+ {[%emt 0:00:10]} 44. Kg2 {[%emt 0:00:00]} Rc8 {[%emt 0:00:
00]} 45. c6 {[%emt 0:00:00]} Rc3 {[%emt 0:02:13]} 46. Rxb5 {[%emt 0:00:00]}
R3xc6 {[%emt 0:00:11]} 47. Kh1 {[%emt 0:00:00]} Bd4 {[%emt 0:08:23]} 48. Bg5 {
[%emt 0:00:00]} a4 {[%emt 0:00:40]} 49. Rd1 {[%emt 0:01:30]} Rc1 {[%emt 0:00:
00]} 50. Rxc1 {[%emt 0:00:06]} Rxc1+ {[%emt 0:00:05]} 51. Kg2 {[%emt 0:00:00]}
h6 {[%emt 0:00:22]} 52. Be7 {[%emt 0:00:33]} Rc2+ {[%emt 0:03:23]} 53. Kh1 {
[%emt 0:05:17]} Ra2 {[%emt 0:00:19]} 54. Ra5 {[%emt 0:06:10]} Bb2 {[%emt 0:00:
00]} 55. Bd6 {[%emt 0:02:22]} a3 {[%emt 0:01:34]} 56. Ra8+ {[%emt 0:05:35]} Kg7
{[%emt 0:00:57]} 57. h4 {[%emt 0:00:39]} Kf6 {[%emt 0:00:30]} 58. Ra5 {[%emt 0:
00:00]} h5 {[%emt 0:01:37]} 59. Bf8 {[%emt 0:00:24]} Ra1+ {[%emt 0:00:44]} 60.
Kg2 {[%emt 0:00:46]} a2 {[%emt 0:00:17]} 61. Bb4 {[%emt 0:01:07]} Bd4 {[%emt 0:
00:00]} 62. Bd6 {[%emt 0:00:44]} Rg1+ {[%emt 0:00:12]} 0-1

[Event "44th Chess Olympiad Open 2022"]
[Site "Chennai"]
[Date "2022.08.05"]
[Round "7.68"]
[White "Kwong, Wing Ki"]
[Black "Matola Ernest"]
[Result "1-0"]
[WhiteElo "1824"]
[BlackElo "1964"]
[Annotator "NA"]
[PlyCount "87"]
[EventDate "2022.??.??"]
[TimeControl "60"]

1. d4 {[%emt 0:00:06]} Nf6 {[%emt 0:00:07]} 2. c4 {[%emt 0:00:10]} g6 {[%emt 0:
00:00]} 3. Nc3 {[%emt 0:00:26]} Bg7 {[%emt 0:00:12]} 4. e4 {[%emt 0:00:26]} d6
{[%emt 0:00:10]} 5. Nf3 {[%emt 0:00:31]} O-O {[%emt 0:00:56]} 6. Be2 {[%emt 0:
00:00]} Na6 {[%emt 0:00:00]} 7. O-O {[%emt 0:00:48]} e5 {[%emt 0:01:12]} 8. d5
{[%emt 0:01:48]} Nh5 {[%emt 0:00:50]} 9. Rb1 {[%emt 0:09:54]} Nf4 {[%emt 0:00:
00]} 10. b4 {[%emt 0:00:27]} f5 {[%emt 0:00:59]} 11. Ba3 {[%emt 0:08:50]} fxe4
{[%emt 0:01:06]} 12. Nxe4 {[%emt 0:00:27]} Bf5 {[%emt 0:05:19]} 13. Nfd2 {
[%emt 0:02:07]} Bh6 {[%emt 0:04:01]} 14. Bf3 {[%emt 0:03:00]} b5 {[%emt 0:00:
00]} 15. cxb5 {[%emt 0:02:02]} Nb8 {[%emt 0:00:14]} 16. Rb3 {[%emt 0:02:07]}
Nd7 {[%emt 0:01:28]} 17. g3 {[%emt 0:01:42]} Nh3+ {[%emt 0:00:50]} 18. Kh1 {
[%emt 0:00:54]} Nb6 {[%emt 0:02:18]} 19. Bg2 {[%emt 0:02:05]} Bd7 {[%emt 0:00:
00]} 20. Bc1 {[%emt 0:04:17]} Ng5 {[%emt 0:06:44]} 21. Nf3 {[%emt 0:06:46]} Nf7
{[%emt 0:02:33]} 22. Qe2 {[%emt 0:05:37]} Bg7 {[%emt 0:01:38]} 23. Rd1 {
[%emt 0:00:23]} Qe8 {[%emt 0:01:19]} 24. Bf1 {[%emt 0:03:46]} Nh6 {[%emt 0:00:
00]} 25. Rc3 {[%emt 0:04:27]} Rc8 {[%emt 0:02:11]} 26. Bxh6 {[%emt 0:08:16]}
Bxh6 {[%emt 0:00:22]} 27. Nfg5 {[%emt 0:00:58]} Qe7 {[%emt 0:01:41]} 28. h4 {
[%emt 0:00:17]} Kh8 {[%emt 0:02:27]} 29. Kh2 {[%emt 0:04:38]} Bf5 {[%emt 0:00:
00]} 30. Bg2 {[%emt 0:05:57]} Rf6 {[%emt 0:01:57]} 31. Nxf6 {[%emt 0:00:58]}
Qxf6 {[%emt 0:02:30]} 32. Rdc1 {[%emt 0:01:26]} Qe7 {[%emt 0:00:07]} 33. Be4 {
[%emt 0:05:33]} Bxg5 {[%emt 0:01:07]} 34. hxg5 {[%emt 0:00:14]} Qxg5 {[%emt 0:
00:00]} 35. Rxc7 {[%emt 0:02:52]} Rf8 {[%emt 0:00:32]} 36. Kg1 {[%emt 0:01:29]}
h5 {[%emt 0:00:54]} 37. Bxf5 {[%emt 0:03:35]} gxf5 {[%emt 0:00:48]} 38. Qe3 {
[%emt 0:02:21]} f4 {[%emt 0:00:30]} 39. Qe4 {[%emt 0:00:34]} Rf5 {[%emt 0:00:
00]} 40. R1c3 {[%emt 0:00:47]} h4 {[%emt 0:00:37]} 41. Qg2 {[%emt 0:32:49]} Qf6
{[%emt 0:07:37]} 42. gxf4 {[%emt 0:00:00]} exf4 {[%emt 0:00:00]} 43. Qe4 {
[%emt 0:09:29]} f3 {[%emt 0:03:20]} 44. Rxf3 {[%emt 0:00:00]} 1-0

[Event "44th Chess Olympiad Open 2022"]
[Site "Chennai"]
[Date "2022.08.05"]
[Round "7.69"]
[White "Matoewi, Roger"]
[Black "seder mohamad"]
[Result "1/2-1/2"]
[WhiteElo "2015"]
[BlackElo "1950"]
[Annotator "NA"]
[PlyCount "87"]
[EventDate "2022.??.??"]
[TimeControl "60"]

1. Nf3 {[%emt 0:00:13]} e6 {[%emt 0:04:08]} 2. g3 {[%emt 0:00:23]} Nf6 {
[%emt 0:02:28]} 3. Bg2 {[%emt 0:00:09]} d5 {[%emt 0:00:55]} 4. c4 {[%emt 0:00:
00]} Be7 {[%emt 0:01:55]} 5. O-O {[%emt 0:00:09]} O-O {[%emt 0:01:06]} 6. d4 {
[%emt 0:00:13]} c5 {[%emt 0:01:50]} 7. cxd5 {[%emt 0:02:11]} exd5 {[%emt 0:00:
00]} 8. Nc3 {[%emt 0:00:18]} Nc6 {[%emt 0:04:31]} 9. Bg5 {[%emt 0:02:29]} Be6 {
[%emt 0:05:13]} 10. dxc5 {[%emt 0:10:36]} Bxc5 {[%emt 0:02:52]} 11. Bxf6 {
[%emt 0:05:17]} Qxf6 {[%emt 0:01:28]} 12. Nxd5 {[%emt 0:00:16]} Qxb2 {[%emt 0:
00:00]} 13. Nc7 {[%emt 0:00:11]} Rad8 {[%emt 0:06:31]} 14. Qc1 {[%emt 0:00:20]}
Qxc1 {[%emt 0:03:02]} 15. Raxc1 {[%emt 0:00:17]} Ba3 {[%emt 0:00:19]} 16. Nxe6
{[%emt 0:00:08]} fxe6 {[%emt 0:00:17]} 17. Rb1 {[%emt 0:00:07]} Rd7 {[%emt 0:
00:00]} 18. Ng5 {[%emt 0:00:32]} Re8 {[%emt 0:07:51]} 19. Rxb7 {[%emt 0:00:42]}
Rxb7 {[%emt 0:01:10]} 20. Bxc6 {[%emt 0:00:02]} h6 {[%emt 0:05:48]} 21. Bxb7 {
[%emt 0:01:29]} hxg5 {[%emt 0:00:03]} 22. Rd1 {[%emt 0:00:55]} Kf7 {[%emt 0:00:
00]} 23. Kg2 {[%emt 0:00:34]} Ke7 {[%emt 0:02:31]} 24. Ba6 {[%emt 0:01:39]} Rb8
{[%emt 0:06:33]} 25. Bc4 {[%emt 0:02:38]} Bc5 {[%emt 0:04:36]} 26. Bb3 {
[%emt 0:01:08]} a5 {[%emt 0:07:11]} 27. Rc1 {[%emt 0:03:28]} Bd6 {[%emt 0:00:
00]} 28. Rc6 {[%emt 0:01:16]} Ra8 {[%emt 0:02:49]} 29. Rc4 {[%emt 0:00:17]} Rb8
{[%emt 0:00:44]} 30. Re4 {[%emt 0:00:12]} e5 {[%emt 0:00:30]} 31. Rc4 {[%emt 0:
00:00]} Rb4 {[%emt 0:01:48]} 32. Rc8 {[%emt 0:02:29]} a4 {[%emt 0:03:21]} 33.
Bd5 {[%emt 0:00:15]} Rb8 {[%emt 0:01:06]} 34. Rc6 {[%emt 0:00:50]} Rb2 {
[%emt 0:03:37]} 35. e4 {[%emt 0:03:51]} g4 {[%emt 0:01:19]} 36. h3 {[%emt 0:00:
00]} gxh3+ {[%emt 0:01:47]} 37. Kxh3 {[%emt 0:00:03]} Rxf2 {[%emt 0:01:40]} 38.
Ra6 {[%emt 0:00:59]} a3 {[%emt 0:01:00]} 39. Kg4 {[%emt 0:01:16]} Rf6 {[%emt 0:
00:00]} 40. Ra7+ {[%emt 0:07:43]} Kf8 {[%emt 0:01:03]} 41. Ra8+ {[%emt 0:30:52]
} Ke7 {[%emt 0:30:09]} 42. Ra7+ {[%emt 0:00:08]} Kf8 {[%emt 0:00:21]} 43. Ra8+
{[%emt 0:00:07]} Ke7 {[%emt 0:00:10]} 44. Ra7+ {[%emt 0:01:16]} 1/2-1/2